bitfinex/quotes_ETHUSD_20251224
["timestamp","ask_amount","ask_price","bid_price","bid_amount"]
[1766557323814,5.30170213,2932.7,2931.8,1.5207]
[1766557324011,0.894,2932.7,2931.8,1.5207]
[1766557324216,5.30170213,2932.6,2931.8,1.5207]
[1766557324942,0.894,2932.6,2931.8,1.5207]
[1766557325129,5.72287576,2932.6,2931.7,3.41095141]
[1766557325335,5.72287576,2932.6,2931.8,1.5207]
[1766557325636,9.1431353,2932.6,2931.8,1.5207]
[1766557325835,4.40770213,2932.3,2931.5,1.5207]
[1766557326049,0.44077021,2932.2,2931.5,4.93188299]
[1766557326252,0.44077021,2932.2,2931.6,1.5207]
[1766557326702,4.40770213,2932.2,2931.6,1.5207]
[1766557327115,4.40770213,2932.2,2931.7,1.5207]
[1766557327315,4.40770213,2932.4,2931.7,1.5207]
[1766557328350,4.40770213,2932.5,2931.8,1.55480873]
[1766557328869,0.4314066,2932.6,2931.8,1.54457576]
[1766557329161,0.894,2932.7,2932.0,1.5207]
[1766557329852,4.40770213,2932.6,2932.0,1.5207]
[1766557330221,4.39746951,2932.4,2932.0,1.5207]
[1766557332635,4.40770213,2932.6,2932.0,1.5207]
[1766557332828,5.27988656,2932.6,2932.0,1.5207]
[1766557333954,5.27988656,2932.6,2931.5,3.41117994]
[1766557333955,4.40770213,2932.4,2931.5,3.41117994]
[1766557334256,4.40770213,2932.4,2931.7,1.5207]
[1766557334650,4.40770213,2932.4,2931.8,1.5207]
[1766557334825,0.894,2932.4,2931.9,0.03410757]
[1766557335027,0.894,2932.4,2931.9,1.55480757]
[1766557335232,1.07061844,2932.4,2931.9,1.55480757]
[1766557335449,1.07061844,2932.4,2931.9,1.5207]
[1766557338749,0.82927605,2932.6,2931.8,3.41086805]
[1766557338956,0.001,2932.6,2932.0,1.5207]
[1766557339242,0.001,2932.6,2932.2,1.5207]
[1766557339445,0.894,2933.0,2932.4,1.5207]
[1766557339745,0.894,2933.0,2932.6,1.5207]
[1766557342965,3.41024639,2933.2,2932.6,1.5207]
[1766557343137,0.34102464,2933.1,2932.6,1.5207]
[1766557343665,0.001,2933.2,2932.6,1.5207]
[1766557344370,0.001,2933.2,2932.8,1.5207]
[1766557345136,0.001,2933.2,2932.6,1.55479943]
[1766557345336,0.001,2933.2,2932.7,1.5207]
[1766557345751,0.001,2933.4,2932.8,1.5207]
[1766557346349,0.001,2933.4,2932.9,1.5207]
[1766557346544,3.4095783,2933.8,2932.9,1.5207]
[1766557346749,3.4095783,2933.8,2933.0,1.55479478]
[1766557346750,0.001,2933.8,2933.0,1.55479478]
[1766557346940,4.41796889,2934.3,2933.0,1.55479478]
[1766557346941,3.40785169,2934.4,2933.2,1.5207]
[1766557347144,1.02312431,2934.2,2933.6,1.5207]
[1766557347344,0.20697489,2934.5,2933.8,1.5207]
[1766557347551,0.4614677,2934.4,2933.8,1.5207]
[1766557348343,0.01026676,2934.4,2933.5,0.894]
[1766557348561,0.01026676,2934.2,2933.5,1.5207]
[1766557348774,0.01026676,2934.2,2933.1,1.5207]
[1766557348775,0.01026676,2934.0,2933.1,1.5207]
[1766557348962,3.41867463,2934.0,2933.1,1.5207]
[1766557349345,3.41851067,2934.1,2933.1,1.5207]
[1766557349545,0.43125107,2934.0,2933.2,0.03409245]
[1766557349745,4.30220185,2934.1,2933.1,1.5207]
[1766557350275,4.29197621,2934.1,2933.1,1.5207]
[1766557350571,4.29197621,2934.1,2933.2,0.03409245]
[1766557350747,0.01026676,2934.0,2933.1,1.5207]
[1766557350946,3.40888726,2933.6,2933.1,1e-08]
[1766557351145,3.40888726,2933.6,2932.6,1.3027]
[1766557351146,0.34088873,2933.5,2932.6,1.3027]
[1766557351345,0.34088873,2933.5,2932.8,1.3027]
[1766557351673,0.34088873,2933.5,2933.0,1.3027]
[1766557351896,0.21724165,2934.5,2933.1,0.03409362]
[1766557352181,3.40821367,2934.1,2933.1,1.33679362]
[1766557352348,3.40821367,2934.1,2933.1,1.3027]
[1766557352996,6.81642734,2934.1,2932.9,4.30358164]
[1766557353147,3.62503838,2934.5,2932.9,7.71317623]
[1766557353148,3.40787805,2934.4,2932.9,7.71317623]
[1766557353484,0.90426676,2934.3,2932.9,8.82547239]
[1766557354169,0.001,2934.0,2933.0,0.03409478]
[1766557354378,0.001,2934.0,2932.9,8.82547239]
[1766557354756,0.001,2934.0,2933.0,0.03409478]
[1766557354981,0.001,2934.0,2933.3,6.81825928]
[1766557355184,0.35327332,2934.4,2933.5,1.3053]
[1766557355484,0.20697489,2934.5,2933.5,1.29506948]
[1766557357192,0.20697489,2934.5,2933.7,1.3053]
[1766557357382,0.20697489,2934.5,2933.6,6.81756202]
[1766557357383,0.20697489,2934.5,2933.9,1.3053]
[1766557357700,0.20697489,2934.5,2933.8,0.894]
[1766557357905,0.20697489,2934.5,2933.8,2.1993]
[1766557358105,0.20697489,2934.5,2933.9,1.52523]
[1766557360191,0.1967482,2934.5,2934.0,1.3053]
[1766557360808,0.1967482,2934.5,2933.8,0.894]
[1766557361180,0.1967482,2934.5,2933.9,1.3053]
[1766557361906,0.1977482,2934.5,2933.9,1.3053]
[1766557362288,0.1977482,2934.5,2933.9,4.7137037]
[1766557362508,0.1977482,2934.5,2933.9,2.20693467]
[1766557362904,0.1977482,2934.5,2934.0,1.3053]
[1766557364498,3.6055212,2934.5,2933.8,0.894]
[1766557364695,0.1977482,2934.5,2933.9,0.03408432]
[1766557366018,0.1977482,2934.5,2933.9,1.3053]
[1766557366416,0.5582809,2934.5,2933.9,1.3053]
[1766557366596,0.5582809,2934.5,2933.8,0.894]
[1766557367000,0.5582809,2934.5,2933.6,1.3053]
[1766557367001,3.96606357,2934.5,2933.6,1.3053]
[1766557367306,0.5582809,2934.5,2933.7,0.03408664]
[1766557367923,0.5582809,2934.5,2933.6,1.3053]
[1766557368123,0.1977482,2934.5,2933.6,1.3053]
[1766557368322,3.60549247,2934.5,2933.6,1.3053]
[1766557368625,0.01026676,2934.4,2933.6,1.3053]
[1766557369928,4.49849247,2934.5,2933.7,1.33938664]
[1766557371330,4.49849247,2934.5,2933.7,1.3053]
[1766557372231,0.45087592,2934.4,2933.8,0.03408548]
[1766557372423,0.45087592,2934.4,2933.8,1.33938548]
[1766557372827,0.1977482,2934.5,2933.8,1.33938548]
[1766557373433,0.1977482,2934.5,2933.8,4.74789701]
[1766557373731,0.1977482,2934.5,2933.9,1.3053]
[1766557375137,0.1977482,2934.5,2934.0,1.3053]
[1766557379023,0.1977482,2934.5,2934.1,1.339382]
[1766557379522,0.01026676,2934.2,2933.6,0.002]
[1766557379760,0.01026676,2934.4,2933.2,1.3053]
[1766557379761,0.01026676,2933.8,2933.2,1.3053]
[1766557379945,0.04435469,2934.1,2933.2,1.3053]
[1766557380115,0.03408793,2934.0,2933.2,1.3053]
[1766557380440,0.01026676,2934.1,2933.2,1.3053]
[1766557380609,0.03408793,2934.0,2933.2,1.3053]
[1766557381124,0.03408793,2934.2,2933.3,1.3053]
[1766557381458,0.03408793,2934.1,2933.5,1.4674]
[1766557381612,3.44205575,2934.3,2933.6,0.03408781]
[1766557381810,0.37932018,2934.2,2933.6,1.4674]
[1766557382245,0.03408793,2934.2,2933.6,1.4674]
[1766557382442,0.03408793,2934.3,2933.6,1.4674]
[1766557383339,0.01026676,2934.1,2933.3,1.4674]
[1766557383546,3.44245026,2934.0,2933.3,1.4674]
[1766557384526,0.03408793,2934.0,2933.3,1.4674]
[1766557384850,0.34525982,2933.9,2933.3,1.4674]
[1766557385025,0.03408793,2933.8,2933.3,1.4674]
[1766557386440,0.03408793,2933.9,2933.3,1.4674]
[1766557386848,0.03408793,2933.9,2933.0,4.30347116]
[1766557387439,0.03408793,2933.9,2933.1,3.44343889]
[1766557387645,0.03408793,2934.0,2933.1,3.44343889]
[1766557387845,0.35552541,2933.9,2933.5,0.002]
[1766557388050,0.03408793,2933.8,2933.5,0.002]
[1766557388643,3.41847763,2934.1,2933.5,0.002]
[1766557388644,0.03408793,2934.0,2933.5,0.002]
[1766557390162,0.03408793,2934.1,2933.5,0.002]
[1766557391956,3.44231373,2934.1,2933.5,0.002]
[1766557393150,0.03408793,2934.1,2933.5,0.002]
[1766557393452,0.46863607,2934.1,2933.5,0.002]
[1766557393854,3.87685052,2934.1,2933.5,0.002]
[1766557394154,0.46863607,2934.1,2933.5,0.002]
[1766557394459,3.87685695,2934.1,2933.5,0.002]
[1766557394861,0.46863607,2934.1,2933.5,0.002]
[1766557395460,3.87684548,2934.1,2933.5,0.002]
[1766557395636,0.47698455,2934.0,2933.5,0.002]
[1766557399949,3.44330423,2934.1,2933.5,0.002]
[1766557400153,0.03508793,2934.1,2933.5,0.002]
[1766557401466,3.44332372,2934.1,2933.5,0.002]
[1766557402460,0.03508793,2934.1,2933.5,0.03608897]
[1766557402630,0.001,2934.1,2933.5,0.03608897]
[1766557403033,0.001,2934.1,2933.5,0.92908897]
[1766557404160,0.001,2934.1,2933.6,3.40878101]
[1766557404361,0.1967482,2934.5,2933.7,0.46787364]
[1766557405161,0.1967482,2934.5,2933.7,0.433787]
[1766557405568,0.001,2934.1,2933.7,0.433787]
[1766557405756,0.001,2934.1,2933.5,0.895]
[1766557406756,0.001,2934.1,2933.6,0.03408781]
[1766557408193,0.001,2934.1,2933.7,3.40866482]
[1766557408593,0.001,2934.1,2933.8,0.03408548]
[1766557409173,0.1967482,2934.5,2933.8,0.03408548]
[1766557409490,0.1967482,2934.5,2933.9,1.12456442]
[1766557409645,0.1967482,2934.5,2934.0,0.92708316]
[1766557410255,0.1967482,2934.5,2934.1,6.81640024]
[1766557410487,1e-08,2934.5,2934.2,0.03408083]
[1766557410639,0.03408793,2935.3,2934.2,0.03408083]
[1766557410845,0.03408793,2935.3,2934.3,0.68504811]
[1766557411070,3.44089868,2935.3,2934.4,0.03407851]
[1766557411371,0.03408793,2935.3,2934.4,0.03407851]
[1766557411974,3.44092959,2935.3,2934.4,0.03407851]
[1766557412171,0.03408793,2935.3,2934.6,3.40761943]
[1766557412370,0.03408793,2935.5,2934.7,0.43006194]
[1766557412780,0.893,2936.0,2934.8,0.03407387]
[1766557412781,0.03408793,2935.8,2934.8,0.03407387]
[1766557413279,6.81013346,2936.8,2934.9,4.39422912]
[1766557413455,0.03408793,2936.7,2935.0,0.893]
[1766557413660,0.03408793,2936.7,2935.3,4.39422912]
[1766557413661,0.71851007,2936.7,2935.3,4.39422912]
[1766557413961,0.71851007,2936.7,2935.4,0.0340669]
[1766557414163,0.03408793,2936.7,2935.5,0.893]
[1766557414477,0.03408793,2936.8,2935.6,3.40645864]
[1766557415088,0.03408793,2936.8,2935.4,3.40667607]
[1766557415089,0.001,2935.9,2935.4,3.40667607]
[1766557415393,0.001,2935.9,2935.5,4.33363182]
[1766557415870,0.03408793,2936.8,2935.6,4.39422912]
[1766557416184,3.40581228,2937.1,2935.7,0.81754495]
[1766557416185,0.03408793,2937.0,2935.7,0.81754495]
[1766557416393,0.03508793,2937.1,2935.8,6.81245316]
[1766557416684,0.03508793,2937.1,2935.9,0.893]
[1766557416905,1.02204029,2937.7,2937.0,0.01026676]
[1766557417207,5.96748732,2940.0,2937.8,0.01026676]
[1766557417354,0.13620985,2939.3,2938.0,0.01026676]
[1766557417559,0.17766675,2939.9,2937.3,0.01026676]
[1766557417788,0.17766675,2939.9,2937.4,0.03404371]
[1766557417986,5.96748732,2939.5,2937.1,0.92703791]
[1766557418289,0.37766675,2939.9,2937.3,6.80897422]
[1766557418290,3.40217058,2939.3,2937.3,6.80897422]
[1766557418467,3.40217058,2939.3,2937.4,0.01026676]
[1766557418468,6.80434116,2939.3,2937.4,0.01026676]
[1766557418663,0.68043412,2939.2,2937.5,0.78408104]
[1766557418875,0.68043412,2939.2,2937.2,0.01026676]
[1766557419076,0.68043412,2939.2,2937.3,0.892]
[1766557419389,0.68043412,2939.2,2937.2,7.25735703]
[1766557419686,0.68043412,2939.2,2937.4,0.892]
[1766557419857,0.68043412,2939.2,2937.5,0.92604255]
[1766557420187,0.73826512,2939.1,2937.5,0.92604255]
[1766557420485,6.80503572,2939.0,2937.5,0.03404255]
[1766557420686,10.20755358,2939.0,2937.2,0.03404603]
[1766557420990,1.02173398,2938.9,2937.3,0.92604487]
[1766557421187,1.02173398,2938.9,2937.4,0.892]
[1766557421380,1.46420722,2938.8,2937.5,0.92604255]
[1766557421688,1.46420722,2938.8,2937.5,0.03404255]
[1766557421889,1.46420722,2938.8,2937.6,0.891]
[1766557422191,1.46420722,2938.8,2937.2,3.40457238]
[1766557422387,6.80573042,2938.7,2937.3,0.92504487]
[1766557422570,6.80573042,2938.7,2937.3,4.3295134]
[1766557422571,0.82699376,2938.6,2937.3,4.3295134]
[1766557422771,0.82699376,2938.6,2936.7,0.01026676]
[1766557422970,0.82699376,2938.6,2937.2,3.40459834]
[1766557423178,0.82699376,2938.6,2937.1,3.40470206]
[1766557423488,0.82699376,2938.6,2937.2,0.891]
[1766557423685,1.10355894,2938.5,2936.6,1.02173398]
[1766557423891,1.10355894,2938.5,2937.0,3.40482861]
[1766557424089,1.10355894,2938.5,2937.1,0.03404718]
[1766557424290,6.80642526,2938.4,2937.1,0.03404718]
[1766557424487,6.80642526,2938.4,2937.2,0.891]
[1766557424691,0.79099842,2938.3,2937.3,0.03404487]
[1766557424992,0.79099842,2938.3,2936.0,4.3764681]
[1766557425164,0.79099842,2938.3,2936.6,3.40521601]
[1766557425491,1.8128368,2938.3,2936.7,0.92505182]
[1766557426079,1.8128368,2938.3,2936.7,0.03405182]
[1766557426284,10.21068036,2938.1,2936.8,0.891]
[1766557426592,6.80712024,2938.1,2936.9,0.891]
[1766557426911,10.21068036,2938.1,2936.2,1.02183838]
[1766557427203,10.21068036,2938.1,2936.1,1.02189756]
[1766557427502,10.21068036,2938.1,2936.2,0.891]
[1766557427675,10.21068036,2938.1,2936.1,1.02189756]
[1766557427676,1.14129278,2938.0,2936.3,0.19128976]
[1766557428000,1.14129278,2938.0,2936.5,3.40533162]
[1766557428295,1.14129278,2938.0,2936.7,3.405101]
[1766557428589,6.80758364,2937.9,2936.8,0.03405066]
[1766557428993,6.80758364,2937.9,2936.6,3.40522461]
[1766557429198,0.79488764,2937.8,2936.9,0.891]
[1766557429493,0.79488764,2937.8,2937.0,0.03404834]
[1766557431097,3.40402355,2937.7,2937.0,0.03404834]
[1766557435508,6.80835194,2938.0,2937.0,0.03404834]
[1766557436312,6.80835194,2938.0,2936.4,0.002]
[1766557436516,0.78302495,2937.9,2936.6,3.40522916]
[1766557436692,0.78302495,2937.9,2936.6,3.40526212]
[1766557437185,0.78302495,2937.9,2936.7,0.03405182]
[1766557437420,0.78302495,2937.9,2936.6,3.40526212]
[1766557438690,0.001,2938.0,2936.7,0.03405182]
[1766557439017,0.001,2938.0,2936.8,1.91174442]
[1766557439223,0.001,2938.0,2936.9,0.0340495]
[1766557439720,0.001,2938.0,2937.0,0.17771594]
[1766557439925,0.34046289,2937.9,2937.1,0.03404718]
[1766557440125,3.40467907,2938.0,2937.1,0.03404718]
[1766557440618,0.001,2938.0,2937.1,0.03404718]
[1766557440793,0.001,2938.0,2937.2,0.89]
[1766557440993,0.001,2938.0,2936.8,3.40502986]
[1766557441204,0.001,2938.0,2936.9,0.9260495]
[1766557441525,0.001,2938.0,2937.0,3.40473757]
[1766557441704,0.001,2938.0,2937.1,3.43869739]
[1766557442389,0.001,2938.0,2937.1,6.84341633]
[1766557442593,0.001,2938.0,2937.0,6.80966972]
[1766557442804,0.001,2938.0,2937.1,0.80421415]
[1766557444393,0.001,2938.0,2937.2,0.89]
[1766557444601,0.001,2938.0,2937.3,0.89]
[1766557445212,0.001,2938.0,2937.1,3.40468359]
[1766557445527,0.001,2938.0,2936.9,4.42858958]
[1766557445743,0.001,2938.0,2936.9,0.002]
[1766557446227,0.01126676,2938.0,2936.9,0.002]
[1766557446726,6.80758364,2937.9,2936.9,0.002]
[1766557447825,5.70941265,2937.7,2936.9,0.002]
[1766557448533,0.90026676,2937.7,2936.9,0.002]
[1766557448693,6.80851062,2937.5,2936.9,0.002]
[1766557451923,0.01026676,2937.4,2936.9,0.002]
[1766557452634,10.21276593,2937.5,2936.9,0.002]
[1766557452635,6.80851062,2937.5,2936.9,0.002]
[1766557453134,15.92217858,2937.5,2936.4,0.002]
[1766557453333,0.01026676,2937.3,2935.9,0.88178759]
[1766557453637,0.01026676,2937.1,2935.9,0.88178759]
[1766557453835,0.01026676,2937.1,2935.5,3.4065654]
[1766557454038,0.01026676,2937.1,2935.4,4.29567123]
[1766557454216,0.01026676,2936.8,2935.4,0.889]
[1766557454407,0.01026676,2936.6,2935.2,0.002]
[1766557454612,0.66004127,2936.5,2935.2,0.002]
[1766557455136,6.80107479,2936.3,2935.2,0.002]
[1766557455335,0.90126676,2936.2,2935.2,0.002]
[1766557457021,0.01026676,2936.0,2935.2,0.002]
[1766557457215,6.81222112,2935.9,2935.2,0.002]
[1766557457421,1.91385495,2935.8,2935.2,0.002]
[1766557458036,1.91385495,2935.8,2934.0,3.40824008]
[1766557458037,0.01026676,2935.6,2934.0,3.40824008]
[1766557458210,0.01026676,2935.6,2934.1,0.034082]
[1766557458412,0.01026676,2935.6,2933.8,0.03408548]
[1766557458642,0.891,2935.6,2934.4,3.40781103]
[1766557458844,1.02285495,2935.8,2934.5,0.37485845]
[1766557459012,1.02285495,2935.8,2935.6,0.002]
[1766557459209,1.02285495,2935.8,2934.8,0.03407387]
[1766557459411,3.4063426,2935.7,2934.8,0.03407387]
[1766557459640,3.4063426,2935.7,2934.7,0.03407503]
[1766557459848,6.8126852,2935.7,2934.6,0.03407619]
[1766557460010,0.78355402,2935.6,2934.5,0.002]
[1766557460207,0.891,2935.5,2934.5,0.002]
[1766557460623,0.78355402,2935.6,2934.5,0.002]
[1766557460945,0.891,2935.5,2934.5,0.002]
[1766557461148,0.78355402,2935.6,2934.5,0.03607735]
[1766557461313,3.4063426,2935.7,2934.6,3.4075203]
[1766557461667,6.8126852,2935.7,2934.5,0.002]
[1766557462624,0.01026676,2935.6,2934.5,0.002]
[1766557464450,3.40657468,2935.5,2934.5,0.002]
[1766557464750,0.891,2935.4,2934.5,0.002]
[1766557464956,0.42975747,2935.3,2934.6,2.3973]
[1766557467065,3.83663628,2935.3,2934.6,2.3973]
[1766557467242,0.42975747,2935.3,2934.6,2.3973]
[1766557467442,4.29773744,2935.4,2934.6,2.3973]
[1766557467640,0.891,2935.4,2934.6,2.3973]
[1766557467841,4.29771813,2935.4,2934.6,2.3973]
[1766557468534,3.40671813,2935.4,2934.6,2.3973]
[1766557474167,3.40659987,2935.5,2934.6,2.3973]
[1766557474366,3.40659987,2935.5,2934.8,2.4837]
[1766557474672,0.891,2935.9,2935.0,2.4837]
[1766557475653,0.001,2935.7,2935.0,2.4837]
[1766557479250,0.001,2935.7,2935.2,2.4837]
[1766557482257,0.34171106,2935.7,2935.2,2.4837]
[1766557482855,0.34171106,2935.7,2934.8,2.7239]
[1766557483269,3.74816788,2935.7,2934.8,2.75797387]
[1766557483457,3.74809643,2935.7,2934.9,2.7239]
[1766557485563,0.34171106,2935.7,2934.9,2.7239]
[1766557485769,0.34171106,2935.7,2935.1,2.7239]
[1766557486462,3.74806164,2935.7,2935.1,2.7239]
[1766557488684,0.34171106,2935.7,2935.1,2.7239]
[1766557489264,3.74805723,2935.7,2935.1,2.7239]
[1766557489887,0.6271817,2935.6,2935.1,2.7239]
[1766557490400,0.6271817,2935.6,2934.8,2.7239]
[1766557490580,3.40657468,2935.5,2934.8,2.7239]
[1766557491573,4.03367303,2935.6,2935.0,0.002]
[1766557491789,4.03367303,2935.6,2935.0,2.7259]
[1766557492506,0.6271817,2935.6,2935.0,2.7259]
[1766557492664,3.74816421,2935.7,2935.0,2.7259]
[1766557492665,1.23371106,2935.7,2935.0,2.7259]
[1766557492869,4.64007472,2935.7,2935.0,2.7259]
[1766557493817,8.04643838,2935.7,2935.0,2.7259]
[1766557494103,4.64007472,2935.7,2935.0,2.7259]
[1766557494391,0.80463176,2935.6,2935.0,2.7259]
[1766557496799,4.21111992,2935.6,2935.0,2.7259]
[1766557497171,0.80463176,2935.6,2935.0,2.7259]
[1766557499695,0.80563176,2935.6,2935.0,2.7259]
[1766557499893,4.21213158,2935.6,2935.0,2.7259]
[1766557500204,0.54458426,2935.5,2935.0,2.7259]
[1766557501696,3.40669074,2935.4,2934.6,2.967]
[1766557501874,6.81338148,2935.4,2934.6,2.967]
[1766557504497,0.892,2935.3,2934.6,2.967]
[1766557504702,0.77053815,2935.2,2934.6,2.967]
[1766557506184,3.40697377,2935.2,2934.5,0.002]
[1766557506400,6.81394754,2935.2,2934.5,0.002]
[1766557506573,6.81394754,2935.2,2934.5,2.969]
[1766557507008,3.40697377,2935.2,2934.5,2.969]
[1766557507522,6.81394754,2935.2,2934.5,2.969]
[1766557507685,0.77059475,2935.1,2934.5,2.969]
[1766557508121,3.40715502,2935.0,2934.5,2.969]
[1766557508793,3.40715502,2935.0,2933.8,2.969]
[1766557508794,4.39165593,2934.6,2933.8,2.969]
[1766557508988,0.892,2934.5,2933.8,2.969]
[1766557510120,4.29973937,2934.5,2933.8,2.969]
[1766557512625,7.70747874,2934.5,2933.8,2.969]
[1766557512990,4.29973937,2934.5,2933.8,2.969]
[1766557514497,7.70747874,2934.5,2933.8,2.969]
[1766557514698,0.77074787,2934.4,2933.8,2.969]
[1766557516897,0.77074787,2934.4,2933.8,0.002]
[1766557517100,4.17861761,2934.4,2933.8,0.002]
[1766557517908,7.58648735,2934.4,2933.8,0.002]
[1766557519503,4.17861761,2934.4,2933.8,0.002]
[1766557519711,0.84886377,2934.3,2933.8,0.002]
[1766557520829,0.01026676,2934.2,2933.8,0.002]
[1766557521014,0.892,2934.1,2933.8,0.002]
[1766557523438,0.892,2934.2,2933.8,0.002]
[1766557524336,1.10023266,2934.9,2933.8,0.002]
[1766557524642,4.29996152,2935.2,2933.9,4.39165593]
[1766557524810,0.17885505,2935.2,2933.9,4.39165593]
[1766557525003,0.001,2935.2,2934.2,4.39165593]
[1766557525207,0.001,2935.2,2934.3,0.03407967]
[1766557525626,0.001,2935.2,2934.2,3.85057344]
[1766557526130,0.001,2935.2,2934.3,3.40794477]
[1766557526534,0.001,2935.2,2934.4,0.03407851]
[1766557527239,0.001,2935.2,2934.5,4.39165593]
[1766557527427,0.001,2935.2,2934.6,1.36564963]
[1766557527732,0.001,2935.2,2934.6,4.73910414]
[1766557531249,0.001,2935.2,2934.6,1.33157344]
[1766557531420,0.001,2935.2,2934.6,4.73915854]
[1766557531613,0.001,2935.2,2934.8,3.40738721]
[1766557531944,0.001,2935.2,2934.8,4.22544929]
[1766557532313,0.001,2935.2,2934.8,0.81806208]
[1766557532512,0.001,2935.6,2934.8,0.81806208]
[1766557533949,0.001,2935.6,2934.9,3.40727111]
[1766557534941,0.001,2935.6,2934.8,0.81806208]
[1766557535150,0.001,2935.6,2934.7,3.4074354]
[1766557536347,0.001,2935.6,2934.6,4.29652951]
[1766557536648,0.001,2935.6,2934.6,3.40761001]
[1766557536816,0.001,2935.6,2934.7,0.03407503]
[1766557537417,0.001,2935.6,2934.6,3.40761001]
[1766557538647,3.40745864,2935.6,2934.3,6.81593564]
[1766557538849,0.43004586,2935.5,2934.4,1.25391655]
[1766557540239,0.43004586,2935.5,2934.5,0.03407735]
[1766557540843,0.43004586,2935.5,2934.6,3.40761943]
[1766557541152,0.43004586,2935.5,2934.7,0.03407503]
[1766557541354,0.43004586,2935.5,2934.7,0.889]
[1766557541552,0.001,2935.6,2934.8,0.80449776]
[1766557542324,3.4074616,2935.6,2934.7,0.889]
[1766557542945,0.001,2935.6,2934.8,0.03407387]
[1766557544855,0.001,2935.6,2934.8,3.44143922]
[1766557545647,0.001,2935.6,2934.7,0.889]
[1766557546960,3.40745864,2935.6,2934.7,0.889]
[1766557547155,0.34187254,2935.5,2934.7,0.889]
[1766557549673,3.74852778,2935.5,2934.7,0.889]
[1766557551066,3.74852778,2935.5,2934.6,0.002]
[1766557551067,0.01026676,2935.4,2934.6,0.002]
[1766557551270,0.01026676,2934.9,2934.6,0.002]
[1766557553161,0.01026676,2935.2,2934.6,0.002]
[1766557553365,0.35300522,2935.2,2934.6,0.002]
[1766557553768,0.01026676,2935.0,2934.6,0.002]
[1766557554766,0.01026676,2934.8,2934.6,0.002]
[1766557557592,0.01026676,2935.0,2934.6,0.002]
[1766557560558,0.001,2935.2,2934.9,4.39116437]
[1766557560764,0.001,2935.2,2935.0,0.03407155]
[1766557560989,0.001,2935.2,2934.9,0.03407271]
[1766557561195,0.001,2935.2,2934.6,0.891]
[1766557561362,0.01026676,2935.1,2934.6,0.891]
[1766557561563,0.01026676,2935.0,2934.6,0.891]
[1766557561964,0.001,2935.2,2934.6,0.891]
[1766557562181,0.01026676,2935.1,2934.6,0.891]
[1766557562664,0.001,2935.2,2934.6,0.891]
[1766557562862,0.001,2935.2,2934.8,4.39116437]
[1766557563078,0.001,2935.2,2934.9,0.889]
[1766557563296,0.001,2935.2,2935.0,3.40715502]
[1766557563503,0.001,2935.2,2935.0,4.61661454]
[1766557566019,0.001,2935.2,2935.0,3.40715502]
[1766557569926,0.001,2935.2,2934.9,4.29623561]
[1766557570132,0.001,2935.2,2934.9,3.40723561]
[1766557570695,0.001,2935.2,2935.0,0.002]
[1766557571416,0.001,2935.2,2935.0,3.1595]
[1766557571618,0.001,2935.6,2935.2,3.1575]
[1766557571798,0.001,2935.6,2935.3,3.19156806]
[1766557572193,0.001,2935.6,2935.1,1.43651711]
[1766557572407,0.001,2935.6,2935.0,3.73749067]
[1766557573325,0.001,2935.6,2935.1,3.40703894]
[1766557573527,0.001,2935.6,2935.2,0.71445296]
[1766557573822,0.001,2935.6,2935.3,3.19156806]
[1766557575333,0.001,2935.6,2933.4,0.002]
[1766557575334,0.01026676,2933.8,2933.4,0.002]
[1766557575531,0.004,2933.3,2933.2,1.12083943]
[1766557575828,0.004,2933.3,2932.6,0.002]
[1766557575829,0.05287507,2933.7,2933.0,3.1595]
[1766557576028,0.05287216,2933.9,2933.2,3.1575]
[1766557576240,0.01026676,2933.9,2933.2,3.1575]
[1766557576403,0.05287216,2933.9,2933.2,3.1575]
[1766557576603,0.01026676,2933.7,2933.2,3.1575]
[1766557578124,0.01026676,2933.7,2933.2,3.40921911]
[1766557578343,0.0426025,2934.1,2933.5,3.1575]
[1766557578507,0.01026676,2934.3,2933.5,3.1575]
[1766557579140,0.01026676,2934.1,2933.5,3.1575]
[1766557579325,0.05286635,2934.3,2933.5,3.1575]
[1766557579542,0.01026676,2934.1,2933.5,3.1575]
[1766557579930,0.01026676,2933.8,2933.2,0.68206856]
[1766557580131,0.01026676,2933.6,2933.1,3.40931682]
[1766557580326,0.01026676,2933.6,2933.0,4.0485]
[1766557580735,0.01026676,2933.4,2933.0,4.0485]
[1766557581606,0.01026676,2933.4,2933.0,0.891]
[1766557581810,0.04260976,2933.6,2933.1,3.1575]
[1766557582070,0.01026676,2933.9,2933.1,3.1575]
[1766557582741,0.05286926,2934.1,2933.1,3.1575]
[1766557583409,0.01026676,2933.9,2933.1,3.1575]
[1766557583939,0.01026676,2933.9,2933.2,3.40924587]
[1766557584122,0.01026676,2933.9,2933.3,3.1575]
[1766557584842,0.001,2933.9,2933.3,3.1575]
[1766557585835,0.01126676,2933.9,2933.3,3.1575]
[1766557586814,0.001,2933.9,2933.3,6.56657544]
[1766557587441,0.01126676,2933.9,2933.3,6.56657544]
[1766557589146,0.01126676,2933.9,2933.3,3.1575]
[1766557590946,0.01026676,2933.7,2933.0,0.891]
[1766557591124,0.01026676,2933.5,2932.8,3.40968525]
[1766557591312,0.01026676,2933.5,2932.8,6.75388525]
[1766557591510,0.01026676,2933.5,2933.0,3.40945467]
[1766557592322,0.01026676,2933.5,2933.0,3.41145467]
[1766557594341,0.01026676,2933.5,2933.0,0.002]
[1766557594558,0.45143655,2933.5,2932.8,3.40964676]
[1766557594745,0.01026676,2933.3,2932.8,3.40964676]
[1766557597948,0.01026676,2933.3,2932.7,3.1605]
[1766557598743,0.892,2933.5,2932.9,3.1605]
[1766557599045,0.01126676,2933.9,2933.1,3.1605]
[1766557599342,0.05387216,2933.9,2933.1,3.1605]
[1766557599545,0.0436054,2933.9,2933.1,3.1605]
[1766557600022,0.0436054,2933.9,2933.3,3.1605]
[1766557602069,0.05387216,2933.9,2933.3,3.40908097]
[1766557602227,0.05387216,2933.9,2933.4,3.1605]
[1766557604358,0.0436054,2933.9,2933.4,3.1605]
[1766557604760,0.05387216,2933.9,2933.4,3.1605]